Workbook

Sheet Dashboard
A1: Sent this month: | D1: 209 | F1: Left process at stage 1: | J1: 330 | L1: Left process at stage 2: | P1: 3 | R1: Exited process: | V1: 43 | X1: Settled: | AA1: 73
A3: Δ from last month: | D3: -249 | F3: Δ from last month: | J3: -1381 | L3: Δ from last month: | P3: -6 | R3: Δ from last month: | V3: -154 | X3: Δ from last month: | AA3: 31
A5: Rolling 12 months: | D5: 9676 | F5: Rolling 12 months: | J5: 6077 | L5: Rolling 12 months: | P5: 73 | R5: Rolling 12 months: | V5: 1854 | X5: Rolling 12 months: | AA5: 601
A7: Left Process Breakdowns - Stage 1:
A9: Reason | H9: This Month | J9: Last Month | L9: Δ
A10: Liability Decision Timeout | H10: 325 | J10: 1688 | L10: -1363
A11: Other | H11: 5 | J11: 23 | L11: -18
A12: Total | H12: 330 | J12: 1711 | L12: -1381
A13: Left Process Breakdowns - Stage 2:
A15: Reason | H15: This Month | J15: Last Month | L15: Δ
A16: Interim payment more than £1,000 not agreed: | H16: 0 | J16: 0 | L16: 0
A17: Settlement pack repudiated: | H17: 2 | J17: 7 | L17: -5
A18: Settlement pack timeout: | H18: 1 | J18: 2 | L18: -1
A19: No agreement; Court Proceedings pack: | H19: 0 | J19: 0 | L19: 0
A20: Total | H20: 3 | J20: 9 | L20: -6

Sheet Backing Sheet Data
A1: Reporting date | B1: 2023-12-01
A2: Previous month | B2: 2023-11-01
A4: Rolling 12 CNFs sent | E4: Average General Damages chart data | I4: Left Process Breakdown
A6: Period | B6: Rolling 12 Sent | E6: Row Labels | F6: Ave General Damages | I6: This Month LDT | J6: This Month Other Liability | K6: This Month Interim Payment Not Agreed | L6: This Month Repudiated | M6: This Month Timeout | N6: This Month Court Proceedings
A7: 2023-01-01 | B7: 5254 | E7: 2023-01-01 | F7: 3662.128363 | I7: 325 | J7: 5 | K7: 0 | L7: 2 | M7: 1 | N7: 0
A8: 2023-02-01 | B8: 5447 | E8: 2023-02-01 | F8: 4206.8
A9: 2023-03-01 | B9: 5533 | E9: 2023-03-01 | F9: 3586.473428 | I9: CNF Sent Monthly Volumes Chart Data
A10: 2023-04-01 | B10: 5716 | E10: 2023-04-01 | F10: 3567.691724
A11: 2023-05-01 | B11: 5829 | E11: 2023-05-01 | F11: 3827.930781 | I11: Sum of ClaimCount | J11: Column Labels
A12: 2023-06-01 | B12: 5877 | E12: 2023-06-01 | F12: 3444.55102 | I12: Row Labels | J12: RTA | K12: PL | L12: ELD | M12: EL | N12: Grand Total
A13: 2023-07-01 | B13: 6072 | E13: 2023-07-01 | F13: 3578.814 | I13: 2023-01-01 | J13: 7409 | K13: 3373 | L13: 501 | M13: 2542 | N13: 13825
A14: 2023-08-01 | B14: 6519 | E14: 2023-08-01 | F14: 3724.151063 | I14: 2023-02-01 | J14: 7487 | K14: 3297 | L14: 521 | M14: 2355 | N14: 13660
A15: 2023-09-01 | B15: 8798 | E15: 2023-09-01 | F15: 3420.821978 | I15: 2023-03-01 | J15: 7465 | K15: 3568 | L15: 533 | M15: 2657 | N15: 14223
A16: 2023-10-01 | B16: 9762 | E16: 2023-10-01 | F16: 3354.669811 | I16: 2023-04-01 | J16: 6139 | K16: 2734 | L16: 543 | M16: 2151 | N16: 11567
A17: 2023-11-01 | B17: 9818 | E17: 2023-11-01 | F17: 4025.859761 | I17: 2023-05-01 | J17: 6874 | K17: 3172 | L17: 615 | M17: 2215 | N17: 12876
A18: 2023-12-01 | B18: 9676 | E18: 2023-12-01 | F18: 3342.43863 | I18: 2023-06-01 | J18: 7707 | K18: 3452 | L18: 640 | M18: 2561 | N18: 14360
E19: Grand Total | F19: 43742.33056 | I19: 2023-07-01 | J19: 7302 | K19: 3351 | L19: 695 | M19: 2470 | N19: 13818
I20: 2023-08-01 | J20: 7477 | K20: 3398 | L20: 1003 | M20: 2447 | N20: 14325
I21: 2023-09-01 | J21: 7027 | K21: 3141 | L21: 3524 | M21: 2369 | N21: 16061
B22: 2758 | E22: CNF Sent Monthly Volumes | I22: 2023-10-01 | J22: 7854 | K22: 3328 | L22: 423 | M22: 2491 | N22: 14096
A23: Exit Process Reason | B23: Total | I23: 2023-11-01 | J23: 7769 | K23: 3228 | L23: 469 | M23: 2524 | N23: 13990
A24: Claim requires further investigation | B24: 1281 | E24: DatePeriod | F24: ClaimType | G24: ClaimCount | I24: 2023-12-01 | J24: 5624 | K24: 2020 | L24: 209 | M24: 1506 | N24: 9359
A25: Other | B25: 990 | E25: 2022-10-01 | F25: EL | G25: 1621 | I25: Grand Total | J25: 86134 | K25: 38062 | L25: 9676 | M25: 28288 | N25: 162160
A26: Duplicated claim | B26: 275 | E26: 2022-11-01 | F26: EL | G26: 2627
A27: Incomplete information provided on CNF | B27: 96 | E27: 2022-12-01 | F27: EL | G27: 1666
A28: Withdrawl of claim | B28: 93 | E28: 2023-01-01 | F28: EL | G28: 2542
A29: Value of claim exceeds the upper limit | B29: 11 | E29: 2023-02-01 | F29: EL | G29: 2355
A30: Withdrawal of offer | B30: 4 | E30: 2023-03-01 | F30: EL | G30: 2657
A31: Stage 1 costs not paid on time | B31: 4 | E31: 2023-04-01 | F31: EL | G31: 2151
A32: Claim is too complex for process | B32: 2 | E32: 2023-05-01 | F32: EL | G32: 2215
A33: Failure to provide adequate loss of earnings details | B33: 1 | E33: 2023-06-01 | F33: EL | G33: 2561
A34: Failure to acknowledge CNF on time | B34: 1 | E34: 2023-07-01 | F34: EL | G34: 2470
E35: 2023-08-01 | F35: EL | G35: 2447
E36: 2023-09-01 | F36: EL | G36: 2369
E37: 2023-10-01 | F37: EL | G37: 2491
E38: 2023-11-01 | F38: EL | G38: 2524
E39: 2023-12-01 | F39: EL | G39: 1506
E40: 2022-10-01 | F40: ELD | G40: 292
E41: 2022-11-01 | F41: ELD | G41: 495
E42: 2022-12-01 | F42: ELD | G42: 351
E43: 2023-01-01 | F43: ELD | G43: 501
E44: 2023-02-01 | F44: ELD | G44: 521
E45: 2023-03-01 | F45: ELD | G45: 533
E46: 2023-04-01 | F46: ELD | G46: 543
E47: 2023-05-01 | F47: ELD | G47: 615
E48: 2023-06-01 | F48: ELD | G48: 640
E49: 2023-07-01 | F49: ELD | G49: 695
E50: 2023-08-01 | F50: ELD | G50: 1003
E51: 2023-09-01 | F51: ELD | G51: 3524
E52: 2023-10-01 | F52: ELD | G52: 423
E53: 2023-11-01 | F53: ELD | G53: 469
E54: 2023-12-01 | F54: ELD | G54: 209
E55: 2022-10-01 | F55: PL | G55: 2213
E56: 2022-11-01 | F56: PL | G56: 3324
E57: 2022-12-01 | F57: PL | G57: 2296
E58: 2023-01-01 | F58: PL | G58: 3373
E59: 2023-02-01 | F59: PL | G59: 3297
E60: 2023-03-01 | F60: PL | G60: 3568
E61: 2023-04-01 | F61: PL | G61: 2734
E62: 2023-05-01 | F62: PL | G62: 3172
E63: 2023-06-01 | F63: PL | G63: 3452
E64: 2023-07-01 | F64: PL | G64: 3351
E65: 2023-08-01 | F65: PL | G65: 3398
E66: 2023-09-01 | F66: PL | G66: 3141
E67: 2023-10-01 | F67: PL | G67: 3328
E68: 2023-11-01 | F68: PL | G68: 3228
E69: 2023-12-01 | F69: PL | G69: 2020
E70: 2022-10-01 | F70: RTA | G70: 5049
E71: 2022-11-01 | F71: RTA | G71: 8336
E72: 2022-12-01 | F72: RTA | G72: 6137
E73: 2023-01-01 | F73: RTA | G73: 7409
E74: 2023-02-01 | F74: RTA | G74: 7487
E75: 2023-03-01 | F75: RTA | G75: 7465
E76: 2023-04-01 | F76: RTA | G76: 6139
E77: 2023-05-01 | F77: RTA | G77: 6874
E78: 2023-06-01 | F78: RTA | G78: 7707
E79: 2023-07-01 | F79: RTA | G79: 7302
E80: 2023-08-01 | F80: RTA | G80: 7477
E81: 2023-09-01 | F81: RTA | G81: 7027
E82: 2023-10-01 | F82: RTA | G82: 7854
E83: 2023-11-01 | F83: RTA | G83: 7769
E84: 2023-12-01 | F84: RTA | G84: 5624

Sheet vELDDashboard (hidden)
B1: =SUBTOTAL(9,vELDDashboard[CNFs Sent]) -> 19082 | C1: =SUBTOTAL(9,vELDDashboard[CNFs left at Stage 1]) -> 10789 | D1: =SUBTOTAL(9,vELDDashboard[Stage 2 Exit]) -> 182 | E1: =SUBTOTAL(9,vELDDashboard[Exit process]) -> 3777 | F1: =SUBTOTAL(9,vELDDashboard[Court Pack]) -> 7 | G1: =SUBTOTAL(9,vELDDashboard[Settled claims]) -> 1175 | H1: =SUBTOTAL(9,vELDDashboard[General Damages]) -> 255916.6697
A2: Period | B2: CNFs Sent | C2: CNFs left at Stage 1 | D2: Stage 2 Exit | E2: Exit process | F2: Court Pack | G2: Settled claims | H2: General Damages | J2: Period | K2: Rolling 12 CNF Sent | L2: Rolling 12 CNF Left at Stage 1 | M2: Rolling 12 Stage 2 Exit | N2: Rolling 12 Exit Process | O2: Rolling 12 Court Pack | P2: Rolling 12 Settled Claims | R2: Period | S2: CNFs Sent | T2: CNFs left at Stage 1 | U2: Stage 2 Exit | V2: Exit process | W2: Court Pack | X2: Settled claims | Y2: General Damages
A3: 2019-10-01 | B3: 175 | C3: 64 | D3: 2 | E3: 61 | F3: 0 | G3: 7 | H3: 9071.428571 | J3: =vELDDashboard[[#This Row],[Period]] -> 2019-10-01 | R3: 2019-01-01 | S3: 439 | T3: 207 | U3: 1 | V3: 162 | W3: 1 | X3: 24 | Y3: 3734.385
A4: 2019-11-01 | B4: 153 | C4: 63 | D4: 4 | E4: 50 | F4: 0 | G4: 2 | H4: 9375 | J4: =vELDDashboard[[#This Row],[Period]] -> 2019-11-01 | R4: 2019-02-01 | S4: 469 | T4: 150 | U4: 4 | V4: 131 | W4: 0 | X4: 29 | Y4: 4074.730689
A5: 2020-01-01 | B5: 139 | C5: 57 | D5: 2 | E5: 52 | F5: 0 | G5: 1 | H5: 3625 | J5: =vELDDashboard[[#This Row],[Period]] -> 2020-01-01 | R5: 2019-03-01 | S5: 444 | T5: 247 | U5: 4 | V5: 154 | W5: 1 | X5: 29 | Y5: 3890.427586
A6: 2020-02-01 | B6: 167 | C6: 43 | D6: 0 | E6: 39 | F6: 0 | G6: 1 | H6: 10000 | J6: =vELDDashboard[[#This Row],[Period]] -> 2020-02-01 | R6: 2019-04-01 | S6: 405 | T6: 225 | U6: 3 | V6: 153 | W6: 3 | X6: 36 | Y6: 4254.035277
A7: 2020-03-01 | B7: 147 | C7: 69 | D7: 3 | E7: 51 | F7: 0 | G7: 2 | H7: 6875 | J7: =vELDDashboard[[#This Row],[Period]] -> 2020-03-01 | R7: 2019-05-01 | S7: 418 | T7: 218 | U7: 5 | V7: 144 | W7: 0 | X7: 30 | Y7: 3973.95
A8: 2020-04-01 | B8: 145 | C8: 61 | D8: 0 | E8: 45 | F8: 1 | G8: 2 | H8: 6750 | J8: =vELDDashboard[[#This Row],[Period]] -> 2020-04-01 | R8: 2019-06-01 | S8: 373 | T8: 214 | U8: 6 | V8: 135 | W8: 2 | X8: 22 | Y8: 4900.111818
A9: 2020-05-01 | B9: 86 | C9: 65 | D9: 3 | E9: 30 | F9: 0 | G9: 2 | H9: 9250 | J9: =vELDDashboard[[#This Row],[Period]] -> 2020-05-01 | R9: 2019-07-01 | S9: 431 | T9: 222 | U9: 3 | V9: 130 | W9: 3 | X9: 27 | Y9: 4078.79037
A10: 2020-06-01 | B10: 133 | C10: 59 | D10: 0 | E10: 35 | F10: 0 | G10: 4 | H10: 10000 | J10: =vELDDashboard[[#This Row],[Period]] -> 2020-06-01 | R10: 2019-08-01 | S10: 367 | T10: 206 | U10: 2 | V10: 117 | W10: 0 | X10: 24 | Y10: 4280.075833
A11: 2020-07-01 | B11: 109 | C11: 54 | D11: 0 | E11: 31 | F11: 0 | G11: 1 | H11: 3600 | J11: =vELDDashboard[[#This Row],[Period]] -> 2020-07-01 | R11: 2019-09-01 | S11: 385 | T11: 190 | U11: 5 | V11: 134 | W11: 0 | X11: 28 | Y11: 4135.575
A12: 2020-09-01 | B12: 126 | C12: 47 | D12: 0 | E12: 22 | F12: 0 | G12: 1 | H12: 10000 | J12: =vELDDashboard[[#This Row],[Period]] -> 2020-09-01 | R12: 2019-10-01 | S12: 432 | T12: 174 | U12: 5 | V12: 152 | W12: 1 | X12: 37 | Y12: 4641.112432
A13: 2020-10-01 | B13: 133 | C13: 33 | D13: 0 | E13: 36 | F13: 0 | G13: 3 | H13: 8356.8 | J13: =vELDDashboard[[#This Row],[Period]] -> 2020-10-01 | R13: 2019-11-01 | S13: 327 | T13: 171 | U13: 6 | V13: 114 | W13: 1 | X13: 30 | Y13: 4546.597
A14: 2020-11-01 | B14: 162 | C14: 50 | D14: 0 | E14: 25 | F14: 0 | G14: 2 | H14: 6750 | J14: =vELDDashboard[[#This Row],[Period]] -> 2020-11-01 | K14: =SUM(B3:B49) -> 19082 | L14: 10789 | M14: 182 | N14: 3777 | O14: 7 | P14: 1175 | R14: 2019-12-01 | S14: 254 | T14: 144 | U14: 5 | V14: 95 | W14: 4 | X14: 15 | Y14: 3946.052
A15: 2020-12-01 | B15: 122 | C15: 64 | D15: 0 | E15: 50 | F15: 1 | G15: 3 | H15: 2433.333333 | J15: =vELDDashboard[[#This Row],[Period]] -> 2020-12-01 | K15: =SUM(B4:B15) -> 1622 | L15: 665 | M15: 12 | N15: 466 | O15: 2 | P15: 24 | R15: 2020-01-01 | S15: 325 | T15: 132 | U15: 6 | V15: 111 | W15: 2 | X15: 27 | Y15: 3777.607407
A16: 2021-01-01 | B16: 119 | C16: 73 | D16: 0 | E16: 38 | F16: 0 | G16: 3 | H16: 3310.733333 | J16: =vELDDashboard[[#This Row],[Period]] -> 2021-01-01 | K16: =SUM(B5:B16) -> 1588 | L16: =SUM(C5:C16) -> 675 | M16: 8 | N16: 454 | O16: 2 | P16: 25 | R16: 2020-02-01 | S16: 364 | T16: 114 | U16: 1 | V16: 97 | W16: 0 | X16: 29 | Y16: 5334.22862
A17: 2021-02-01 | B17: 126 | C17: 32 | D17: 2 | E17: 24 | F17: 0 | G17: 2 | H17: 5930 | J17: =vELDDashboard[[#This Row],[Period]] -> 2021-02-01 | K17: =SUM(B6:B17) -> 1575 | L17: =SUM(C6:C17) -> 650 | M17: =SUM(D6:D17) -> 8 | N17: =SUM(E6:E17) -> 426 | O17: =SUM(F6:F17) -> 2 | P17: =SUM(G6:G17) -> 26 | R17: 2020-03-01 | S17: 335 | T17: 173 | U17: 4 | V17: 104 | W17: 0 | X17: 48 | Y17: 4100.90625
A18: 2021-03-01 | B18: 187 | C18: 56 | D18: 2 | E18: 42 | F18: 0 | G18: 2 | H18: 13795.2 | J18: =vELDDashboard[[#This Row],[Period]] -> 2021-03-01 | K18: =SUM(B7:B18) -> 1595 | L18: 663 | M18: 10 | N18: 429 | O18: 2 | P18: 27 | R18: 2020-04-01 | S18: 380 | T18: 141 | U18: 1 | V18: 113 | W18: 2 | X18: 50 | Y18: 4034.8254
A19: 2021-05-01 | B19: 137 | C19: 49 | D19: 0 | E19: 32 | F19: 0 | G19: 1 | H19: 17013.87 | J19: =vELDDashboard[[#This Row],[Period]] -> 2021-05-01 | K19: 1585 | L19: =SUM(C8:C19) -> 643 | M19: =SUM(D8:D19) -> 7 | N19: =SUM(E8:E19) -> 410 | O19: =SUM(F8:F19) -> 2 | P19: =SUM(G8:G19) -> 26 | R19: 2020-05-01 | S19: 230 | T19: 122 | U19: 7 | V19: 92 | W19: 0 | X19: 38 | Y19: 4309.436842
A20: 2021-07-01 | B20: 208 | C20: 55 | D20: 1 | E20: 34 | F20: 0 | G20: 3 | H20: 6416.666666 | J20: =vELDDashboard[[#This Row],[Period]] -> 2021-07-01 | K20: 1648 | L20: 637 | M20: 8 | N20: 399 | O20: 1 | P20: 27 | R20: 2020-06-01 | S20: 265 | T20: 171 | U20: 5 | V20: 102 | W20: 0 | X20: 51 | Y20: 4113.323137
A21: 2021-08-01 | B21: 287 | C21: 53 | D21: 1 | E21: 39 | F21: 0 | G21: 1 | H21: 6500 | J21: =vELDDashboard[[#This Row],[Period]] -> 2021-08-01 | K21: 1849 | L21: 625 | M21: 6 | N21: 408 | O21: 1 | P21: 26 | R21: 2020-07-01 | S21: 274 | T21: 123 | U21: 2 | V21: 86 | W21: 1 | X21: 33 | Y21: 3784.4
A22: 2021-09-01 | B22: 336 | C22: 98 | D22: 8 | E22: 70 | F22: 0 | G22: 21 | H22: 3171.77619 | J22: =vELDDashboard[[#This Row],[Period]] -> 2021-09-01 | K22: 2052 | L22: 664 | M22: 14 | N22: 443 | O22: 1 | P22: 43 | R22: 2020-08-01 | S22: 160 | T22: 104 | U22: 1 | V22: 69 | W22: 0 | X22: 20 | Y22: 4155.127
A23: 2021-10-01 | B23: 359 | C23: 167 | D23: 4 | E23: 68 | F23: 0 | G23: 46 | H23: 3425.783695 | J23: =vELDDashboard[[#This Row],[Period]] -> 2021-10-01 | K23: 2302 | L23: 777 | M23: 18 | N23: 480 | O23: 1 | P23: 88 | R23: 2020-09-01 | S23: 297 | T23: 113 | U23: 2 | V23: 66 | W23: 0 | X23: 21 | Y23: 4429.123809
A24: 2021-11-01 | B24: 429 | C24: 187 | D24: 6 | E24: 108 | F24: 1 | G24: 37 | H24: 3912.088648 | J24: =vELDDashboard[[#This Row],[Period]] -> 2021-11-01 | K24: 2605 | L24: 917 | M24: 24 | N24: 566 | O24: 2 | P24: 124 | R24: 2020-10-01 | S24: 309 | T24: 100 | U24: 2 | V24: 104 | W24: 0 | X24: 35 | Y24: 4108.028
A25: 2021-12-01 | B25: 282 | C25: 197 | D25: 4 | E25: 93 | F25: 0 | G25: 31 | H25: 3562.285483 | J25: =vELDDashboard[[#This Row],[Period]] -> 2021-12-01 | K25: 2754 | L25: 1081 | M25: 28 | N25: 623 | O25: 2 | P25: 152 | R25: 2020-11-01 | S25: 286 | T25: 127 | U25: 1 | V25: 66 | W25: 0 | X25: 32 | Y25: 3741.734375
A26: 2022-01-01 | B26: 381 | C26: 192 | D26: 5 | E26: 93 | F26: 0 | G26: 62 | H26: 3547.137903 | J26: =vELDDashboard[[#This Row],[Period]] -> 2022-01-01 | K26: 2973 | L26: 1223 | M26: 33 | N26: 691 | O26: 2 | P26: 212 | R26: 2020-12-01 | S26: 249 | T26: 118 | U26: 3 | V26: 91 | W26: 1 | X26: 38 | Y26: 3454.545
A27: 2022-02-01 | B27: 326 | C27: 161 | D27: 4 | E27: 59 | F27: 0 | G27: 60 | H27: 3531.957666 | J27: =vELDDashboard[[#This Row],[Period]] -> 2022-02-01 | K27: 3177 | L27: 1320 | M27: 37 | N27: 700 | O27: 1 | P27: 269 | R27: 2021-01-01 | S27: 310 | T27: 135 | U27: 2 | V27: 96 | W27: 0 | X27: 44 | Y27: 3490.159772
A28: 2022-03-01 | B28: 447 | C28: 216 | D28: 5 | E28: 67 | F28: 0 | G28: 32 | H28: 4654.525312 | J28: =vELDDashboard[[#This Row],[Period]] -> 2022-03-01 | K28: 3505 | L28: 1463 | M28: 42 | N28: 729 | O28: 1 | P28: 298 | R28: 2021-02-01 | S28: 161 | T28: 81 | U28: 1 | V28: 53 | W28: 0 | X28: 45 | Y28: 3844.666666
A29: 2022-04-01 | B29: 360 | C29: 193 | D29: 5 | E29: 80 | F29: 0 | G29: 7 | H29: 4386.034285 | J29: =vELDDashboard[[#This Row],[Period]] -> 2022-04-01 | K29: 3739 | L29: 1624 | M29: 45 | N29: 785 | O29: 1 | P29: 303 | R29: 2021-03-01 | S29: 290 | T29: 147 | U29: 2 | V29: 99 | W29: 1 | X29: 45 | Y29: 3700.458
A30: 2022-05-01 | B30: 503 | C30: 252 | D30: 4 | E30: 77 | F30: 1 | G30: 35 | H30: 3951.711428 | J30: =vELDDashboard[[#This Row],[Period]] -> 2022-05-01 | K30: 4055 | L30: 1820 | M30: 47 | N30: 820 | O30: 2 | P30: 336 | R30: 2021-04-01 | S30: 302 | T30: 132 | U30: 4 | V30: 87 | W30: 0 | X30: 29 | Y30: 3493.789655
A31: 2022-06-01 | B31: 463 | C31: 215 | D31: 7 | E31: 67 | F31: 1 | G31: 19 | H31: 4170.318947 | J31: =vELDDashboard[[#This Row],[Period]] -> 2022-06-01 | K31: 4381 | L31: 1986 | M31: 54 | N31: 855 | O31: 3 | P31: 354 | R31: 2021-05-01 | S31: 240 | T31: 129 | U31: 1 | V31: 84 | W31: 0 | X31: 44 | Y31: 3907.815681
A32: 2022-07-01 | B32: 452 | C32: 418 | D32: 8 | E32: 56 | F32: 0 | G32: 27 | H32: 3708.055555 | J32: =vELDDashboard[[#This Row],[Period]] -> 2022-07-01 | K32: 4625 | L32: 2349 | M32: 61 | N32: 877 | O32: 3 | P32: 378 | R32: 2021-06-01 | S32: 258 | T32: 190 | U32: 1 | V32: 69 | W32: 1 | X32: 17 | Y32: 4477.42647
A33: 2022-08-01 | B33: 505 | C33: 337 | D33: 9 | E33: 63 | F33: 0 | G33: 25 | H33: 4221.534 | J33: =vELDDashboard[[#This Row],[Period]] -> 2022-08-01 | K33: 4843 | L33: 2633 | M33: 69 | N33: 901 | O33: 3 | P33: 402 | R33: 2021-07-01 | S33: 411 | T33: 154 | U33: 2 | V33: 65 | W33: 0 | X33: 35 | Y33: 3377.421428
A34: 2022-09-01 | B34: 409 | C34: 239 | D34: 8 | E34: 66 | F34: 1 | G34: 32 | H34: 4589.998437 | J34: =vELDDashboard[[#This Row],[Period]] -> 2022-09-01 | K34: 4916 | L34: 2774 | M34: 69 | N34: 897 | O34: 4 | P34: 413 | R34: 2021-08-01 | S34: 310 | T34: 186 | U34: 2 | V34: 70 | W34: 0 | X34: 23 | Y34: 3008.734782
A35: 2022-10-01 | B35: 447 | C35: 285 | D35: 3 | E35: 70 | F35: 0 | G35: 36 | H35: 3836.775 | J35: =vELDDashboard[[#This Row],[Period]] -> 2022-10-01 | K35: 5004 | L35: 2892 | M35: 68 | N35: 899 | O35: 4 | P35: 403 | R35: 2021-09-01 | S35: 322 | T35: 187 | U35: 9 | V35: 88 | W35: 0 | X35: 56 | Y35: 3245.840178
A36: 2022-11-01 | B36: 495 | C36: 252 | D36: 3 | E36: 79 | F36: 1 | G36: 29 | H36: 5012.076896 | J36: =vELDDashboard[[#This Row],[Period]] -> 2022-11-01 | K36: 5070 | L36: 2957 | M36: 65 | N36: 870 | O36: 4 | P36: 395 | R36: 2021-10-01 | S36: 335 | T36: 162 | U36: 4 | V36: 70 | W36: 0 | X36: 46 | Y36: 3487.340217
A37: 2022-12-01 | B37: 351 | C37: 256 | D37: 6 | E37: 71 | F37: 0 | G37: 32 | H37: 3439.247812 | J37: =vELDDashboard[[#This Row],[Period]] -> 2022-12-01 | K37: 5139 | L37: 3016 | M37: 67 | N37: 848 | O37: 4 | P37: 396 | R37: 2021-11-01 | S37: 408 | T37: 180 | U37: 6 | V37: 100 | W37: 1 | X37: 37 | Y37: 3714.316756
A38: 2023-01-01 | B38: 501 | C38: 306 | D38: 8 | E38: 69 | F38: 0 | G38: 55 | H38: 3662.128363 | J38: =vELDDashboard[[#This Row],[Period]] -> 2023-01-01 | K38: =SUM(B27:B38) -> 5259 | L38: 3130 | M38: 70 | N38: 824 | O38: 4 | P38: 389 | R38: 2021-12-01 | S38: 252 | T38: 194 | U38: 4 | V38: 90 | W38: 0 | X38: 31 | Y38: 3321.544838
A39: 2023-02-01 | B39: 521 | C39: 217 | D39: 3 | E39: 72 | F39: 0 | G39: 23 | H39: 4206.8 | J39: =vELDDashboard[[#This Row],[Period]] -> 2023-02-01 | K39: 5454 | L39: 3186 | M39: 69 | N39: 837 | O39: 4 | P39: 352 | R39: 2022-01-01 | S39: 360 | T39: 192 | U39: 5 | V39: 92 | W39: 0 | X39: 63 | Y39: 3527.666825
A40: 2023-03-01 | B40: 533 | C40: 339 | D40: 10 | E40: 114 | F40: 0 | G40: 35 | H40: 3586.473428 | J40: =vELDDashboard[[#This Row],[Period]] -> 2023-03-01 | K40: =SUM(B29:B40) -> 5540 | L40: =SUM(C29:C40) -> 3309 | M40: =SUM(D29:D40) -> 74 | N40: =SUM(E29:E40) -> 884 | O40: =SUM(F29:F40) -> 4 | P40: =SUM(G29:G40) -> 355 | R40: 2022-02-01 | S40: 308 | T40: 160 | U40: 4 | V40: 59 | W40: 0 | X40: 63 | Y40: 3380.203333
A41: 2023-04-01 | B41: 543 | C41: 260 | D41: 4 | E41: 75 | F41: 0 | G41: 29 | H41: 3567.691724 | J41: =vELDDashboard[[#This Row],[Period]] -> 2023-04-01 | K41: 5723 | L41: 3376 | M41: 73 | N41: 879 | O41: 4 | P41: 377 | R41: 2022-03-01 | S41: 416 | T41: 223 | U41: 5 | V41: 71 | W41: 0 | X41: 36 | Y41: 4066.627777
A42: 2023-05-01 | B42: 615 | C42: 214 | D42: 12 | E42: 95 | F42: 0 | G42: 64 | H42: 3827.930781 | J42: =vELDDashboard[[#This Row],[Period]] -> 2023-05-01 | K42: 5835 | L42: =SUM(C31:C42) -> 3338 | M42: 81 | N42: 897 | O42: 3 | P42: 406 | R42: 2022-04-01 | S42: 329 | T42: 186 | U42: 5 | V42: 79 | W42: 0 | X42: 7 | Y42: 4384.605714
A43: 2023-06-01 | B43: 640 | C43: 449 | D43: 4 | E43: 91 | F43: 0 | G43: 49 | H43: 3444.55102 | J43: =vELDDashboard[[#This Row],[Period]] -> 2023-06-01 | K43: 6012 | L43: =SUM(C32:C43) -> 3572 | M43: 78 | N43: =SUM(E32:E43) -> 921 | O43: =SUM(F32:F43) -> 2 | P43: 436 | R43: 2022-05-01 | S43: 394 | T43: 246 | U43: 4 | V43: 76 | W43: 1 | X43: 36 | Y43: 3896.656388
A44: 2023-07-01 | B44: 695 | C44: 413 | D44: 6 | E44: 116 | F44: 0 | G44: 40 | H44: 3578.814 | J44: =vELDDashboard[[#This Row],[Period]] -> 2023-07-01 | K44: 6255 | L44: =SUM(C33:C44) -> 3567 | M44: =SUM(D33:D44) -> 76 | N44: =SUM(E33:E44) -> 981 | O44: =SUM(F33:F44) -> 2 | P44: =SUM(G33:G44) -> 449 | R44: 2022-06-01 | S44: 487 | T44: 210 | U44: 7 | V44: 70 | W44: 1 | X44: 19 | Y44: 3997.487894
A45: 2023-08-01 | B45: 1003 | C45: 418 | D45: 8 | E45: 186 | F45: 0 | G45: 47 | H45: 3724.151063 | J45: =vELDDashboard[[#This Row],[Period]] -> 2023-08-01 | K45: =SUM(B34:B45) -> 6753 | L45: 3648 | M45: 75 | N45: =SUM(E34:E45) -> 1104 | O45: =SUM(F34:F45) -> 2 | P45: 471 | R45: 2022-07-01 | S45: 427 | T45: 417 | U45: 9 | V45: 56 | W45: 0 | X45: 28 | Y45: 3584.553571
A46: 2023-09-01 | B46: 3524 | C46: 432 | D46: 3 | E46: 383 | F46: 0 | G46: 91 | H46: 3420.821978 | J46: =vELDDashboard[[#This Row],[Period]] -> 2023-09-01 | K46: 9868 | L46: 3841 | M46: 70 | N46: =SUM(E35:E46) -> 1421 | O46: 1 | P46: 530 | R46: 2022-08-01 | S46: 492 | T46: 332 | U46: 9 | V46: 63 | W46: 0 | X46: 25 | Y46: 4211.534
A47: 2023-10-01 | B47: 423 | C47: 988 | D47: 3 | E47: 413 | F47: 0 | G47: 53 | H47: 3354.669811 | J47: =vELDDashboard[[#This Row],[Period]] -> 2023-10-01 | K47: =SUM(B36:B47) -> 9844 | L47: =SUM(C36:C47) -> 4544 | M47: =SUM(D36:D47) -> 70 | N47: =SUM(E36:E47) -> 1764 | O47: 1 | P47: 547 | R47: 2022-09-01 | S47: 392 | T47: 236 | U47: 8 | V47: 73 | W47: 1 | X47: 33 | Y47: 4464.692121
A48: 2023-11-01 | B48: 469 | C48: 1711 | D48: 9 | E48: 197 | F48: 0 | G48: 42 | H48: 4025.859761 | J48: =vELDDashboard[[#This Row],[Period]] -> 2023-11-01 | K48: =SUM(B37:B48) -> 9818 | L48: =SUM(C37:C48) -> 6003 | M48: =SUM(D37:D48) -> 76 | N48: =SUM(E37:E48) -> 1882 | O48: =SUM(F37:F48) -> 0 | P48: =SUM(G37:G48) -> 560 | R48: 2022-10-01 | S48: 417 | T48: 279 | U48: 3 | V48: 64 | W48: 0 | X48: 37 | Y48: 3634.356756
A49: 2023-12-01 | B49: 209 | C49: 330 | D49: 3 | E49: 43 | F49: 0 | G49: 73 | H49: 3342.43863 | J49: =vELDDashboard[[#This Row],[Period]] -> 2023-12-01 | K49: =SUM(B38:B49) -> 9676 | L49: =SUM(C38:C49) -> 6077 | M49: =SUM(D38:D49) -> 73 | N49: =SUM(E38:E49) -> 1854 | O49: =SUM(F38:F49) -> 0 | P49: =SUM(G38:G49) -> 601 | R49: 2022-11-01 | S49: 427 | T49: 243 | U49: 3 | V49: 84 | W49: 1 | X49: 29 | Y49: 4357.831034
R50: 2022-12-01 | S50: 289 | T50: 251 | U50: 6 | V50: 69 | W50: 0 | X50: 32 | Y50: 3895.497812
R51: 2023-01-01 | S51: 489 | T51: 294 | U51: 8 | V51: 69 | W51: 0 | X51: 55 | Y51: 3662.128363
R52: 2023-02-01 | S52: 508 | T52: 198 | U52: 3 | V52: 70 | W52: 0 | X52: 19 | Y52: 4284.547368
R53: 2023-03-01 | S53: 452 | T53: 294 | U53: 9 | V53: 106 | W53: 0 | X53: 34 | Y53: 3586.075588
R54: 2023-04-01 | S54: 534 | T54: 243 | U54: 4 | V54: 75 | W54: 0 | X54: 29 | Y54: 3567.691724
R55: 2023-05-01 | S55: 605 | T55: 204 | U55: 12 | V55: 90 | W55: 0 | X55: 64 | Y55: 3827.930781
R56: 2023-06-01 | S56: 620 | T56: 437 | U56: 4 | V56: 88 | W56: 0 | X56: 48 | Y56: 3391.3125
R57: 2023-07-01 | S57: 681 | T57: 407 | U57: 6 | V57: 115 | W57: 0 | X57: 40 | Y57: 3578.814
R58: 2023-08-01 | S58: 942 | T58: 410 | U58: 8 | V58: 176 | W58: 0 | X58: 47 | Y58: 3724.151063
R59: 2023-09-01 | S59: 3397 | T59: 424 | U59: 3 | V59: 366 | W59: 0 | X59: 50 | Y59: 3667.8904
R60: 2023-10-01 | S60: 414 | T60: 977 | U60: 3 | V60: 398 | W60: 0 | X60: 53 | Y60: 3354.669811
R61: 2023-11-01 | S61: 458 | T61: 1711 | U61: 9 | V61: 197 | W61: 0 | X61: 42 | Y61: 4025.859761
R62: 2023-12-01 | S62: 209 | T62: 330 | U62: 3 | V62: 43 | W62: 0 | X62: 73 | Y62: 3342.43863

Sheet Year Calculations (hidden)
A1: Period | B1: CNFs sent | C1: CNFs left at stage 1 | D1: Stage 2 exit | E1: Exit process | F1: Court pack | G1: Settled claims
A2: 2013-14 | B2: =SUM('Backing Sheet Data'!#REF!) ->  | C2: =SUM('Backing Sheet Data'!#REF!) ->  | D2: =SUM('Backing Sheet Data'!#REF!) ->  | E2: =SUM('Backing Sheet Data'!#REF!) ->  | F2: =SUM('Backing Sheet Data'!#REF!) ->  | G2: =SUM('Backing Sheet Data'!#REF!) -> 
A3: 2014-15 | B3: =SUM('Backing Sheet Data'!#REF!) ->  | C3: =SUM('Backing Sheet Data'!#REF!) ->  | D3: =SUM('Backing Sheet Data'!#REF!) ->  | E3: =SUM('Backing Sheet Data'!#REF!) ->  | F3: =SUM('Backing Sheet Data'!#REF!) ->  | G3: =SUM('Backing Sheet Data'!#REF!) -> 
A4: 2015-16 | B4: =SUM('Backing Sheet Data'!#REF!) ->  | C4: =SUM('Backing Sheet Data'!#REF!) ->  | D4: =SUM('Backing Sheet Data'!#REF!) ->  | E4: =SUM('Backing Sheet Data'!#REF!) ->  | F4: =SUM('Backing Sheet Data'!#REF!) ->  | G4: =SUM('Backing Sheet Data'!#REF!) -> 
A5: 2016-17 | B5: =SUM('Backing Sheet Data'!#REF!) ->  | C5: =SUM('Backing Sheet Data'!#REF!) ->  | D5: =SUM('Backing Sheet Data'!#REF!) ->  | E5: =SUM('Backing Sheet Data'!#REF!) ->  | F5: =SUM('Backing Sheet Data'!#REF!) ->  | G5: =SUM('Backing Sheet Data'!#REF!) -> 
A6: 2017-18 | B6: =SUM('Backing Sheet Data'!#REF!) ->  | C6: =SUM('Backing Sheet Data'!#REF!) ->  | D6: =SUM('Backing Sheet Data'!#REF!) ->  | E6: =SUM('Backing Sheet Data'!#REF!) ->  | F6: =SUM('Backing Sheet Data'!#REF!) ->  | G6: =SUM('Backing Sheet Data'!#REF!) -> 
A7: 2018-19 | B7: =SUM('Backing Sheet Data'!#REF!) ->  | C7: =SUM('Backing Sheet Data'!#REF!) ->  | D7: =SUM('Backing Sheet Data'!#REF!) ->  | E7: =SUM('Backing Sheet Data'!#REF!) ->  | F7: =SUM('Backing Sheet Data'!#REF!) ->  | G7: =SUM('Backing Sheet Data'!#REF!) -> 
A8: 2019-20 | B8: =SUM('Backing Sheet Data'!#REF!) ->  | C8: =SUM('Backing Sheet Data'!#REF!) ->  | D8: =SUM('Backing Sheet Data'!#REF!) ->  | E8: =SUM('Backing Sheet Data'!#REF!) ->  | F8: =SUM('Backing Sheet Data'!#REF!) ->  | G8: =SUM('Backing Sheet Data'!#REF!) -> 
A9: 2020-21 | B9: =SUM('Backing Sheet Data'!#REF!) ->  | C9: =SUM('Backing Sheet Data'!#REF!) ->  | D9: =SUM('Backing Sheet Data'!#REF!) ->  | E9: =SUM('Backing Sheet Data'!#REF!) ->  | F9: =SUM('Backing Sheet Data'!#REF!) ->  | G9: =SUM('Backing Sheet Data'!#REF!) -> 
